lending/lending_fUSD_20240131
["ID","MTS","AMOUNT","RATE_DAILY","PERIOD"]
[313057094,1706698244762,-500.0,0.00038698,31]
[313057095,1706698244771,-480.61242824,0.00038698,31]
[313057096,1706698244782,-166.81229506,0.00038698,31]
[313057097,1706698244792,-60618.18163107,0.00038699,2]
[313057098,1706698244805,-983.82216087,0.00038699,2]
[313057099,1706698244816,-1346.31370766,0.00038699,2]
[313057100,1706698244828,-509.73860691,0.00038699,2]
[313057101,1706698244839,-649.02,0.00038699,2]
[313057102,1706698244862,-114.15143027,0.00038699,2]
[313057103,1706698244873,-2392.99999999,0.00038699,2]
[313057104,1706698244884,-682.22899803,0.00038699,2]
[313057105,1706698244905,-1244.6844767,0.00038699,2]
[313057106,1706698244949,-176458.8589885,0.00038699,2]
[313057107,1706698244959,-552.87555977,0.00038699,2]
[313057108,1706698244968,-2760.68885729,0.00038799,12]
[313057109,1706698244978,-5000.0,0.00038804,3]
[313057110,1706698244989,-63352.00773249,0.00038874,4]
[313057111,1706698245186,-278.79969255,0.00038874,4]
[313057112,1706698245197,-451.82225062,0.00038874,4]
[313057113,1706698245209,-21307.08014292,0.00038874,4]
[313057114,1706698245220,-331.24618229,0.00038874,4]
[313057115,1706698245232,-1016.18242901,0.00038874,4]
[313057116,1706698245254,-1459.42366265,0.00038874,4]
[313057117,1706698245273,-629.22967908,0.00038874,4]
[313057118,1706698245284,-471.4835072,0.00038874,4]
[313057119,1706698245296,-290.5,0.00038874,4]
[313057120,1706698245317,-472.20993797,0.00038874,4]
[313057128,1706698247735,-221.51654335,0.00035,4]
[313057130,1706698247745,-155.0,0.00038355,4]
[313057132,1706698247754,-1122.59869064,0.00038356,5]
[313057134,1706698247765,-610.88130936,0.00038356,5]
[313057136,1706698247775,-559.99868176,0.00038356,5]
[313057138,1706698247784,-441.66925803,0.00038356,5]
[313057140,1706698247817,-1000.0,0.00038355,4]
[313057141,1706698247826,-58.33074197,0.00038356,5]
[313057142,1706698247835,-1705.25,0.00038356,5]
[313057143,1706698247845,-3014.88686452,0.00038874,4]
[313057144,1706698247855,-239.33111931,0.0003888,2]
[313057145,1706698247864,-335.85309899,0.00038889,4]
[313057146,1706698247873,-945.54354846,0.00038889,4]
[313057147,1706698247884,-4270.59405528,0.00038889,4]
[313057148,1706698247893,-590.13,0.00038889,5]
[313057149,1706698247902,-22340.08057148,0.00038894,4]
[313057150,1706698248137,-465.67000015,0.00038894,4]
[313057152,1706698248149,-561.424,0.00038894,4]
[313057154,1706698248161,-744.78097563,0.00038894,4]
[313057157,1706698248181,-500.0,0.00038356,5]
[313057159,1706698248190,-673.5,0.00038894,4]
[313057161,1706698248202,-35033.86753775,0.00038894,4]
[313057164,1706698248214,-1067.03549707,0.00038894,4]
[313057166,1706698248225,-1959.9999998,0.00038894,4]
[313057169,1706698248241,-800.0,0.00038894,4]
[313057170,1706698248252,-2645.57653317,0.00038894,4]
[313057171,1706698248264,-1441.27823742,0.00038894,4]
[313057172,1706698248275,-459.57912001,0.00038894,4]
[313057173,1706698248287,-4444.42619397,0.00038894,4]
[313057174,1706698248635,-20437.65341485,0.00038894,4]
[313057175,1706698248645,-590.13,0.00038899,5]
[313057176,1706698248654,-1000.0,0.000389,2]
[313057177,1706698248663,-211.36385689,0.000389,2]
[313057178,1706698248673,-205.36682409,0.000389,2]
[313057179,1706698248683,-468.95408004,0.000389,2]
[313057180,1706698248692,-1067.54338444,0.00038903,4]
[313057181,1706698248702,-590.13,0.00038903,5]
[313057182,1706698248711,-500.0,0.00038904,5]
[313057183,1706698248721,-500.0,0.00038904,5]
[313057184,1706698248730,-500.0,0.00038904,5]
[313057185,1706698248740,-500.0,0.00038904,2]
[313057186,1706698248749,-500.0,0.00038904,5]
[313057187,1706698248759,-444.84049127,0.00038904,5]
[313057188,1706698248769,-500.0,0.00038904,5]
[313057189,1706698248778,-500.0,0.00038904,5]
[313057190,1706698248787,-559.86456837,0.00038904,5]
[313057191,1706698248796,-500.0,0.00038904,5]
[313057192,1706698248806,-556.20644697,0.00038904,5]
[313057193,1706698248815,-500.0,0.00038904,5]
[313057194,1706698248824,-476.79401286,0.00038904,5]
[313057195,1706698248834,-500.0,0.00038904,5]
[313057196,1706698248843,-164.23289444,0.00038904,5]
[313057197,1706698248853,-500.0,0.00038904,5]
[313057198,1706698248862,-548.14111269,0.00038904,5]
[313057199,1706698248871,-500.0,0.00038904,5]
[313057200,1706698248882,-547.77,0.00038904,5]
[313057201,1706698248891,-681.48,0.00038904,5]
[313057202,1706698248901,-498.94006,0.00038904,5]
[313057203,1706698248912,-500.0,0.00038904,5]
[313057204,1706698248921,-500.0,0.00038904,5]
[313057205,1706698248930,-1000.0,0.00038904,7]
[313057206,1706698248940,-500.0,0.00038904,5]
[313057207,1706698248950,-500.0,0.00038904,5]
[313057208,1706698248959,-500.0,0.00038904,5]
[313057209,1706698248969,-500.0,0.00038904,5]
[313057210,1706698248979,-500.0,0.00038904,5]
[313057211,1706698248988,-500.0,0.00038904,5]
[313057212,1706698248997,-677.63,0.00038904,2]
[313057213,1706698249007,-718.84,0.00038904,7]
[313057214,1706698249017,-879.92,0.00038904,5]
[313057215,1706698249026,-485.33179613,0.00038904,5]
[313057216,1706698249036,-500.0,0.00038904,5]
[313057217,1706698249046,-500.0,0.00038904,5]
[313057218,1706698249055,-300.00005973,0.00038904,2]
[313057219,1706698249065,-500.0,0.00038904,5]
[313057220,1706698249075,-500.0,0.00038904,5]
[313057221,1706698249084,-500.0,0.00038904,5]
[313057222,1706698249094,-500.0,0.00038904,5]
[313057223,1706698249103,-500.0,0.00038904,5]
[313057224,1706698249113,-500.0,0.00038904,5]
[313057225,1706698249123,-500.0,0.00038904,5]
[313057226,1706698249135,-500.0,0.00038904,5]
[313057227,1706698249185,-500.0,0.00038904,5]
[313057228,1706698249195,-500.0,0.00038904,5]
[313057229,1706698249204,-500.0,0.00038904,5]
[313057230,1706698249214,-619.42,0.00038904,5]
[313057231,1706698249224,-500.0,0.00038904,5]
[313057232,1706698249234,-500.0,0.00038904,5]
[313057233,1706698249244,-500.0,0.00038904,5]
[313057234,1706698249253,-500.0,0.00038904,5]
[313057235,1706698249263,-500.0,0.00038904,5]
[313057236,1706698249272,-500.0,0.00038904,5]
[313057237,1706698249282,-500.0,0.00038904,5]
[313057238,1706698249292,-500.0,0.00038904,5]
[313057239,1706698249302,-500.0,0.00038904,5]
[313057240,1706698249311,-1238.53,0.00038904,5]
[313057241,1706698249323,-500.0,0.00038904,5]
[313057242,1706698249332,-500.0,0.00038904,5]
[313057243,1706698249341,-500.0,0.00038904,5]
[313057244,1706698249351,-500.0,0.00038904,5]
[313057245,1706698249361,-500.0,0.00038904,2]
[313057246,1706698249370,-500.0,0.00038904,5]
[313057247,1706698249381,-614.14,0.00038904,5]
[313057248,1706698249390,-500.0,0.00038904,5]
[313057249,1706698249399,-656.61,0.00038904,5]
[313057250,1706698249408,-500.0,0.00038904,5]
[313057251,1706698249417,-549.22,0.00038904,5]
[313057252,1706698249427,-500.0,0.00038904,5]
[313057253,1706698249437,-500.0,0.00038904,5]
[313057254,1706698249446,-569.02142842,0.00038904,5]
[313057255,1706698249457,-766.21,0.00038904,5]
[313057256,1706698249467,-500.0,0.00038904,2]
[313057257,1706698249477,-500.0,0.00038904,5]
[313057258,1706698249488,-500.0,0.00038904,5]
[313057259,1706698249499,-500.0,0.00038904,5]
[313057260,1706698249509,-500.0,0.00038904,5]
[313057261,1706698249518,-1000.0,0.00038904,120]
[313057262,1706698249530,-500.0,0.00038904,2]
[313057263,1706698249540,-585.08185541,0.00038904,5]
[313057264,1706698249550,-153.77492168,0.00038904,5]
[313057265,1706698249559,-500.0,0.00038904,5]
[313057266,1706698249569,-641.21,0.00038904,5]
[313057267,1706698249579,-500.0,0.00038904,5]
[313057268,1706698249588,-500.0,0.00038904,5]
[313057269,1706698249599,-780.07,0.00038904,2]
[313057270,1706698249608,-500.0,0.00038904,5]
[313057271,1706698249617,-500.0,0.00038904,5]
[313057272,1706698249629,-500.0,0.00038904,5]
[313057273,1706698249639,-500.0,0.00038904,5]
[313057274,1706698249648,-500.0,0.00038904,5]
[313057275,1706698249657,-699.64,0.00038904,5]
[313057276,1706698249666,-1556.98,0.00038904,5]
[313057277,1706698249676,-1255.25,0.00038904,5]
[313057278,1706698249686,-623.83,0.00038904,5]
[313057279,1706698249695,-738.5,0.00038904,5]
[313057280,1706698249704,-520.4,0.00038904,5]
[313057281,1706698249714,-819.29,0.00038904,5]
[313057282,1706698249723,-582.5,0.00038904,5]
[313057283,1706698249732,-1000.65,0.00038904,5]
[313057284,1706698249742,-500.0,0.00038904,5]
[313057285,1706698249751,-1636.19,0.00038904,5]
[313057286,1706698249761,-500.0,0.00038904,5]
[313057287,1706698249770,-500.0,0.00038904,5]
[313057288,1706698249780,-3123.87,0.00038904,5]
[313057289,1706698249789,-2384.36,0.00038904,5]
[313057290,1706698249819,-1216.62,0.00038904,5]
[313057291,1706698249844,-500.0,0.00038904,5]
[313057292,1706698249853,-500.0,0.00038904,5]
[313057293,1706698249863,-500.0,0.00038904,5]
[313057294,1706698249872,-811.49,0.00038904,5]
[313057295,1706698249884,-500.0,0.00038904,5]
[313057296,1706698249893,-500.0,0.00038904,5]
[313057297,1706698249903,-739.36,0.00038904,5]
[313057298,1706698249912,-500.0,0.00038904,5]
[313057299,1706698249921,-500.0,0.00038904,5]
[313057300,1706698249930,-500.0,0.00038904,5]
[313057301,1706698249939,-568.64,0.00038904,5]
[313057302,1706698249949,-522.25,0.00038904,5]
[313057303,1706698249958,-500.0,0.00038904,5]
[313057304,1706698249967,-800.32,0.00038904,5]
[313057305,1706698249976,-597.67,0.00038904,5]
[313057306,1706698249985,-720.87,0.00038904,5]
[313057307,1706698249995,-576.99,0.00038904,5]
[313057308,1706698250004,-500.0,0.00038904,5]
[313057309,1706698250013,-705.09,0.00038904,5]
[313057310,1706698250024,-676.89,0.00038904,5]
[313057311,1706698250034,-500.0,0.00038904,5]
[313057312,1706698250044,-749.29,0.00038904,5]
[313057313,1706698250054,-777.66,0.00038904,5]
[313057314,1706698250064,-958.21,0.00038904,5]
[313057315,1706698250074,-501.81,0.00038904,5]
[313057316,1706698250084,-986.2,0.00038904,5]
[313057317,1706698250094,-500.0,0.00038904,5]
[313057318,1706698250103,-557.53,0.00038904,5]
[313057319,1706698250113,-500.0,0.00038904,5]
[313057320,1706698250123,-1505.67,0.00038904,5]
[313057321,1706698250135,-1792.12,0.00038904,5]
[313057322,1706698250144,-1852.1,0.00038904,5]
[313057323,1706698250154,-500.0,0.00038904,5]
[313057324,1706698250164,-934.16,0.00038904,5]
[313057325,1706698250174,-907.34,0.00038904,5]
[313057326,1706698250184,-500.0,0.00038904,5]
[313057327,1706698250194,-684.12,0.00038904,5]
[313057328,1706698250203,-1059.18,0.00038904,5]
[313057329,1706698250213,-570.23009793,0.00038904,5]
[313057330,1706698250223,-500.0,0.00038904,5]
[313057331,1706698250232,-3679.7,0.00038904,5]
[313057332,1706698250241,-500.0,0.00038904,5]
[313057333,1706698250251,-500.0,0.00038904,5]
[313057334,1706698250260,-1431.85,0.00038904,5]
[313057335,1706698250270,-693.42,0.00038904,5]
[313057336,1706698250280,-1427.84,0.00038904,5]
[313057337,1706698250290,-508.3,0.00038904,5]
[313057338,1706698250300,-900.47,0.00038904,5]
[313057339,1706698250309,-500.0,0.00038904,5]
[313057340,1706698250318,-1224.45,0.00038904,5]
[313057341,1706698250327,-500.0,0.00038904,5]
[313057342,1706698250337,-733.39,0.00038904,2]
[313057343,1706698250347,-567.67,0.00038904,5]
[313057344,1706698250357,-3893.36,0.00038904,5]
[313057345,1706698250367,-500.0,0.00038904,5]
[313057346,1706698250377,-500.0,0.00038904,5]
[313057347,1706698250389,-22295.85,0.00038904,5]
[313057348,1706698250398,-591.21,0.00038904,5]
[313057349,1706698250409,-500.0,0.00038904,5]
[313057350,1706698250418,-1097.91,0.00038904,5]
[313057351,1706698250430,-1385.63,0.00038904,5]
[313057352,1706698250440,-500.0,0.00038904,5]
[313057353,1706698250451,-500.0,0.00038904,5]
[313057354,1706698250461,-500.0,0.00038904,5]
[313057355,1706698250471,-757.15,0.00038904,5]
[313057356,1706698250480,-500.0,0.00038904,5]
[313057357,1706698250491,-756.58,0.00038904,5]
[313057358,1706698250500,-500.0,0.00038904,5]
[313057359,1706698250510,-799.66,0.00038904,5]
[313057360,1706698250521,-500.0,0.00038904,5]
[313057361,1706698250532,-500.0,0.00038904,5]
[313057362,1706698250542,-2541.9,0.00038904,5]
[313057363,1706698250553,-500.0,0.00038904,5]
[313057364,1706698250562,-625.71,0.00038904,5]
[313057365,1706698250571,-1376.75,0.00038904,5]
[313057366,1706698250581,-1184.21,0.00038904,5]
[313057367,1706698250591,-1021.09,0.00038904,5]
[313057368,1706698250600,-500.0,0.00038904,5]
[313057369,1706698250610,-500.0,0.00038904,5]
[313057370,1706698250620,-500.0,0.00038904,5]
[313057371,1706698250632,-1077.99,0.00038904,5]
[313057372,1706698250642,-500.0,0.00038904,5]
[313057373,1706698250651,-809.64,0.00038904,5]
[313057374,1706698250661,-2677.28,0.00038904,5]
[313057375,1706698250670,-669.31,0.00038904,5]
[313057376,1706698250680,-500.0,0.00038904,5]
[313057377,1706698250689,-616.7,0.00038904,5]
[313057378,1706698250699,-500.0,0.00038904,5]
[313057379,1706698250709,-503.98388588,0.00038904,5]
[313057380,1706698250719,-1378.12,0.00038904,5]
[313057381,1706698250729,-500.0,0.00038904,5]
[313057382,1706698250738,-500.0,0.00038904,5]
[313057383,1706698250749,-586.04,0.00038904,5]
[313057384,1706698250758,-5819.8,0.00038904,5]
[313057385,1706698250768,-500.0,0.00038904,5]
[313057386,1706698250777,-500.0,0.00038904,5]
[313057387,1706698250787,-500.0,0.00038904,5]
[313057388,1706698250796,-3276.98,0.00038904,5]
[313057389,1706698250806,-1160.28,0.00038904,5]
[313057390,1706698250815,-500.0,0.00038904,5]
[313057391,1706698250825,-749.03,0.00038904,5]
[313057392,1706698250834,-599.4,0.00038904,5]
[313057393,1706698250844,-500.0,0.00038904,5]
[313057394,1706698250853,-624.55,0.00038904,5]
[313057395,1706698250862,-500.0,0.00038904,5]
[313057396,1706698250872,-691.36,0.00038904,5]
[313057397,1706698250881,-1510.08,0.00038904,5]
[313057398,1706698250891,-500.0,0.00038904,5]
[313057399,1706698250900,-500.0,0.00038904,5]
[313057400,1706698250910,-516.00284717,0.00038904,5]
[313057401,1706698250919,-500.0,0.00038904,5]
[313057402,1706698250929,-500.0,0.00038904,5]
[313057403,1706698250938,-691.68,0.00038904,5]
[313057404,1706698250948,-1000.0,0.00038904,2]
[313057405,1706698250957,-500.0,0.00038904,5]
[313057406,1706698250966,-500.0,0.00038904,5]
[313057407,1706698250976,-500.0,0.00038904,5]
[313057408,1706698250986,-500.0,0.00038904,5]
[313057409,1706698250995,-729.89,0.00038904,5]
[313057410,1706698251004,-500.0,0.00038904,5]
[313057411,1706698251014,-500.0,0.00038904,5]
[313057412,1706698251023,-941.88,0.00038904,5]
[313057413,1706698251033,-261.46598447,0.00038904,5]
[313057414,1706698251042,-500.0,0.00038904,5]
[313057415,1706698251052,-500.0,0.00038904,5]
[313057416,1706698251062,-500.0,0.00038904,5]
[313057417,1706698251071,-500.0,0.00038904,5]
[313057418,1706698251081,-500.0,0.00038904,2]
[313057419,1706698251090,-500.0,0.00038904,5]
[313057420,1706698251100,-1154.06,0.00038904,5]
[313057421,1706698251109,-1856.7,0.00038904,5]
[313057422,1706698251118,-500.0,0.00038904,5]
[313057423,1706698251128,-622.81,0.00038904,5]
[313057424,1706698251139,-500.0,0.00038904,2]
[313057425,1706698251149,-3327.13,0.00038904,5]
[313057426,1706698251158,-500.0,0.00038904,5]
[313057427,1706698251168,-526.38,0.00038904,5]
[313057428,1706698251178,-725.19,0.00038904,5]
[313057429,1706698251188,-500.0,0.00038904,5]
[313057430,1706698251198,-1000.61,0.00038904,5]
[313057431,1706698251208,-710.52,0.00038904,5]
[313057432,1706698251218,-500.0,0.00038904,5]
[313057433,1706698251228,-500.0,0.00038904,5]
[313057434,1706698251238,-550.92,0.00038904,5]
[313057435,1706698251248,-500.0,0.00038904,5]
[313057436,1706698251259,-154.11347526,0.00038904,5]
[313057437,1706698251269,-1272.15,0.00038904,5]
[313057438,1706698251279,-510.17,0.00038904,5]
[313057439,1706698251289,-1733.48,0.00038904,5]
[313057440,1706698251300,-500.0,0.00038904,5]
[313057441,1706698251310,-787.55,0.00038933,2]
[313057442,1706698251320,-93074.8720813,0.0003898,4]
[313057443,1706698251331,-564.99356077,0.00038988,4]
[313057444,1706698251341,-868.99398571,0.00038988,2]
[313057445,1706698251351,-2353.38472961,0.00038988,4]
[313057446,1706698251362,-17195.87881008,0.00038989,4]
[313057447,1706698251373,-590.13,0.00038989,5]
[313057448,1706698251383,-72800.77215158,0.0003899,4]
[313057449,1706698251400,-333.30823952,0.0003899,4]
[313057450,1706698251412,-1165.1169794,0.0003899,4]
[313057451,1706698251427,-6202.40549185,0.0003899,4]
[313057452,1706698251439,-1014.94089967,0.0003899,4]
[313057453,1706698251456,-3791.72578855,0.0003899,4]
[313057454,1706698251469,-711.95934504,0.0003899,4]
[313057455,1706698257334,3384.99154798,0.000235,2]
[313057456,1706698265177,4118.73834426,0.000235,2]
[313057457,1706698270340,599625.74641485,0.00023,2]
[313057458,1706698279370,734.35400225,0.00021,2]
[313057459,1706698287280,157.55417846,0.000228,2]
[313057460,1706698293635,459.88178544,0.00022,2]
[313057461,1706698295026,546.03140978,0.000225,2]
[313057462,1706698297360,3546.3787403,0.00011,2]
[313057463,1706698304366,155.95237542,0.00022,2]
[313057464,1706698314281,50247.32480908,0.00022668,2]
[313057465,1706698321738,5325.49419237,0.000155,2]
[313057466,1706698325872,624.7326132,0.0002,2]
[313057468,1706698347081,1885.70617852,0.00015,2]
[313057469,1706698355731,221.10868502,0.0002211,2]
[313057470,1706698383182,17676.04296606,0.000225,2]
[313057471,1706698419879,2183.00995543,0.0002,2]
[313057472,1706698431236,347849.14271683,0.00023,2]
[313057473,1706698437861,155.5794332,0.000225,2]
[313057476,1706698948776,155.0,0.000225,2]
[313057477,1706698949443,155.0,0.000225,2]
[313057478,1706698956410,150.0,0.000225,2]
[313057479,1706698956432,39.53729685,0.000225,2]
[313057480,1706698956844,150.0,0.000225,2]
[313057481,1706698956864,77.36487612,0.000225,2]
[313057482,1706698957560,150.0,0.000225,2]
[313057483,1706698957581,150.0,0.000225,2]
[313057484,1706698957602,62.084026,0.000225,2]
[313057485,1706698957713,87.915974,0.000225,2]
[313057486,1706698957734,150.0,0.000225,2]
[313057487,1706698957754,47.07583422,0.000225,2]
[313057488,1706698959198,283.52752235,0.000225,2]
[313057489,1706698959525,184.91163219,0.00022,2]
[313057490,1706698959634,235.47214903,0.000225,2]
[313057491,1706698963102,150.0,0.000225,2]
[313057492,1706698963124,150.0,0.000225,2]
[313057493,1706698963147,150.0,0.000225,2]
[313057494,1706698963167,150.0,0.000225,2]
[313057495,1706698963189,150.0,0.000225,2]
[313057496,1706698963209,98.83921823,0.000225,2]
[313057497,1706698963880,51.16078177,0.000225,2]
[313057498,1706698963901,150.0,0.000225,2]
[313057499,1706698963920,59.65096099,0.000225,2]
[313057500,1706698964524,90.34903901,0.000225,2]
[313057501,1706698964544,150.0,0.000225,2]
[313057502,1706698964564,150.0,0.000225,2]
[313057503,1706698964584,150.0,0.000225,2]
[313057504,1706698964603,150.0,0.000225,2]
[313057505,1706698964623,150.0,0.000225,2]
[313057506,1706698964643,150.0,0.000225,2]
[313057507,1706698964664,35.41376493,0.000225,2]
[313057508,1706698964795,114.58623507,0.000225,2]
[313057509,1706698964815,150.0,0.000225,2]
[313057510,1706698964836,150.0,0.000225,2]
[313057511,1706698964856,120.6187903,0.000225,2]
[313057512,1706698965413,29.3812097,0.000225,2]
[313057513,1706698965433,125.6187903,0.000225,2]
[313057514,1706698965666,24.3812097,0.0002,2]
[313057515,1706698965688,130.6187903,0.0002,2]
[313057516,1706698967739,19.3812097,0.00022275,2]
[313057517,1706698967766,150.0,0.00022275,2]
[313057518,1706698967787,176.49199281,0.00022275,2]
[313057519,1706698967808,1840.5192403,0.00022275,2]
[313057520,1706698968858,1122.77547519,0.000225,2]
[313057521,1706698969246,1350.0,0.000225,2]
[313057522,1706698969699,808.63102708,0.000225,2]
[313057523,1706698970361,2328.73849707,0.000225,2]
[313057524,1706698970758,155.0,0.000225,2]
[313057525,1706698971046,1108.62585777,0.000225,2]
[313057526,1706698972321,267.4127316,0.000225,2]
[313057527,1706698972844,534.63116618,0.000225,2]
[313057528,1706698973375,4164.75240448,0.00016875,2]
[313057529,1706698973587,362.084026,0.000225,2]
[313057530,1706698973710,284.99180822,0.000225,2]
[313057531,1706698977195,283.52752235,0.000225,2]
[313057532,1706698977600,235.47214903,0.000225,2]
[313057533,1706698979090,488.68522248,0.000225,2]
[313057534,1706698979337,1036.10780751,0.000225,2]
[313057535,1706698979409,6099.83638977,0.000225,2]
[313057536,1706698982534,1025.76280394,0.000225,2]
[313057537,1706698983651,155.0,0.0002,2]
[313057538,1706698983746,2186.39244281,0.00022275,2]
[313057539,1706698984082,176.49,0.00016712,2]
[313057540,1706698984808,535.20502537,0.000225,2]
[313057541,1706698985644,5204.41118884,0.000225,2]
[313057542,1706698986295,2328.73849707,0.000225,2]
[313057543,1706698987254,19017.67593218,0.000225,2]
[313057544,1706698987407,220.41371843,0.000225,2]
[313057545,1706698987884,260.81174276,0.000225,2]
[313057546,1706698989002,1122.77547519,0.000225,2]
[313057547,1706698989372,4164.75240448,0.00016875,2]
[313057548,1706698990292,267.4127316,0.000225,2]
[313057549,1706698991565,362.084026,0.000225,2]
[313057550,1706698991707,808.63102708,0.000225,2]
[313057551,1706698992743,202.7392099,0.000225,2]
[313057552,1706698993712,284.99180822,0.000225,2]
[313057553,1706698995197,283.52752235,0.000225,2]
[313057554,1706698995821,235.47214903,0.000225,2]
[313057555,1706698997423,2934.69249791,0.000225,2]
[313057556,1706699001465,1036.10780751,0.000225,2]
[313057557,1706699001762,1418.69385824,0.00022275,2]
[313057558,1706699002534,1024.5188225,0.000225,2]
[313057559,1706699002954,535.20502537,0.000225,2]
[313057560,1706699003650,155.0,0.0002,2]
[313057561,1706699005374,4164.75240448,0.00016875,2]
[313057562,1706699005669,2600.53605316,0.00023,2]
[313057563,1706699006289,2328.73849707,0.000225,2]
[313057564,1706699006848,1122.77547519,0.000225,2]
[313057565,1706699007585,331.20587174,0.000225,2]
[313057566,1706699008310,267.4127316,0.000225,2]
[313057567,1706699009627,5204.41118884,0.000225,2]
[313057568,1706699009654,814.32002419,0.000225,2]
[313057569,1706699009873,260.81174276,0.000225,2]
[313057570,1706699011762,19017.67593218,0.000225,2]
[313057571,1706699013595,235.47214903,0.000225,2]
[313057572,1706699017191,283.52752235,0.000225,2]
[313057573,1706699017293,1036.10780751,0.000225,2]
[313057574,1706699019648,190.88956048,0.0002,2]
[313057575,1706699019721,284.99180822,0.000225,2]
[313057576,1706699020814,535.20502537,0.000225,2]
[313057577,1706699023382,4164.75240448,0.00016875,2]
[313057578,1706699023665,1753.65414606,0.00023,2]
[313057579,1706699024304,2328.73849707,0.000225,2]
[313057580,1706699024848,1122.77547519,0.000225,2]
[313057581,1706699025623,5204.41118884,0.000225,2]
[313057582,1706699026297,267.17426784,0.000225,2]
[313057583,1706699029879,260.81174276,0.000225,2]
[313057584,1706699030258,6197.94902036,0.000225,2]
[313057585,1706699033610,235.47214903,0.000225,2]
[313057586,1706699037312,585.59517131,0.000225,2]
[313057587,1706699038295,2328.73849707,0.000225,2]
[313057588,1706699039223,325.41654954,0.000225,2]
[313057589,1706699039725,284.99180822,0.000225,2]
[313057590,1706699040820,535.20502537,0.000225,2]
[313057591,1706699040851,1122.77547519,0.000225,2]
[313057592,1706699041633,5204.41118884,0.000225,2]
[313057593,1706699043401,4164.75240448,0.00016875,2]
[313057594,1706699047884,260.81174276,0.000225,2]
[313057595,1706699049616,235.47214903,0.000225,2]
[313057596,1706699054292,2328.73849707,0.000225,2]
[313057597,1706699056815,535.20502537,0.000225,2]
[313057598,1706699059639,3632.32435164,0.000225,2]
[313057599,1706699060854,1122.77547519,0.000225,2]
[313057600,1706699065372,4164.75240448,0.00016875,2]
[313057601,1706699065612,235.47214903,0.000225,2]
[313057602,1706699065716,417.46835655,0.000225,2]
[313057603,1706699065886,261.5908428,0.000225,2]
[313057604,1706699074301,2328.73849707,0.000225,2]
[313057605,1706699078813,535.20502537,0.000225,2]
[313057606,1706699078846,1122.77547519,0.000225,2]
[313057607,1706699081614,235.47214903,0.000225,2]
[313057608,1706699083767,4164.75240448,0.00016875,2]
[313057609,1706699094300,2328.73849707,0.000225,2]
[313057610,1706699094816,535.20502537,0.000225,2]
[313057611,1706699094859,1251.9227375,0.000225,2]
[313057612,1706699101387,528.46901104,0.00016875,2]
[313057613,1706699107616,234.03969442,0.000225,2]
[313057614,1706699110856,535.20502537,0.000225,2]
[313057615,1706699112304,2328.73849707,0.000225,2]
[313057617,1706699132317,1938.98977952,0.000225,2]
[313057618,1706699132373,536.83634885,0.000225,2]
[313057638,1706699359513,171.53,0.00022337,2]
[313057671,1706699431879,-612.90951479,0.00024408,2]
[313057672,1706699431892,-641.99543764,0.00024408,2]